bitfinex-derivatives/quotes_ETHF0:USTF0_20240907
["timestamp","ask_amount","ask_price","bid_price","bid_amount"]
[1725688587297,0.44186,2263.7,2263.4,3.2078]
[1725688588304,0.44186,2263.7,2263.4,3.64972]
[1725688589400,0.44177,2264.2,2263.8,0.44183]
[1725688589595,1.49177,2264.5,2263.7,3.2078]
[1725688589797,1.49177,2264.5,2263.7,3.9378]
[1725688589798,0.44176,2264.2,2263.7,3.9378]
[1725688590103,4.31225,2264.2,2263.7,0.73]
[1725688590293,0.44183,2263.9,2263.7,0.3705]
[1725688592795,0.3875,2264.5,2263.7,0.3705]
[1725688592996,0.44177,2264.2,2263.9,0.4418]
[1725688593305,0.44177,2264.2,2263.9,0.44182]
[1725688593606,0.44177,2264.2,2263.8,4.03523]
[1725688593903,0.44177,2264.2,2263.9,0.44182]
[1725688594201,0.44176,2264.3,2263.8,3.5934]
[1725688594502,0.44176,2264.3,2263.9,0.44181]
[1725688594712,0.44174,2264.4,2264.0,0.44179]
[1725688595296,0.44175,2264.3,2264.0,0.44179]
[1725688595495,0.44173,2264.4,2263.8,3.5934]
[1725688595712,0.44175,2264.3,2263.8,3.5934]
[1725688596003,1.10432,2264.4,2263.8,4.03523]
[1725688596205,0.44177,2264.2,2263.8,4.03523]
[1725688597311,0.44179,2264.1,2263.8,4.03523]
[1725688597603,1.10432,2264.4,2263.5,0.81968]
[1725688597604,0.44182,2263.9,2263.5,0.81968]
[1725688597795,0.83325,2263.8,2263.5,0.81968]
[1725688598105,0.83325,2263.8,2263.5,0.81969]
[1725688603105,0.3914,2263.8,2263.6,0.44187]
[1725688603315,0.83325,2263.8,2263.5,0.81969]
[1725688604903,0.3914,2263.8,2263.5,0.81969]
[1725688605107,0.83324,2263.8,2263.5,0.81969]
[1725688605703,0.3914,2263.8,2263.6,0.44188]
[1725688605909,0.44183,2263.9,2263.6,0.44188]
[1725688606611,0.44183,2263.9,2263.7,0.3971]
[1725688606809,7.4776,2263.8,2263.1,3.2078]
[1725688607010,0.44196,2263.2,2262.8,4.3709]
[1725688607211,0.44197,2263.2,2262.8,4.3709]
[1725688607717,0.44198,2263.1,2262.8,4.3709]
[1725688608113,0.44197,2263.2,2262.8,4.3709]
[1725688608913,0.44198,2263.1,2262.8,4.3709]
[1725688609109,0.442,2263.1,2262.8,4.3709]
[1725688609615,0.442,2263.0,2262.8,4.3709]
[1725688609812,0.44199,2263.1,2262.8,4.3709]
[1725688610719,0.44201,2263.0,2262.8,4.3709]
[1725688613822,0.44202,2262.9,2262.8,4.3709]
[1725688614817,4.4192,2262.9,2262.7,1.15722383]
[1725688615017,1.10515,2262.7,2262.2,4.01795957]
[1725688615332,0.44213,2262.3,2262.2,1.1249]
[1725688615520,0.44213,2262.3,2262.2,0.7462]
[1725688616223,0.44217,2262.1,2262.0,1.53592383]
[1725688616428,0.44217,2262.1,2262.0,0.3787]
[1725688618426,0.44216,2262.2,2262.0,0.3787]
[1725688618721,3.64993,2262.4,2262.1,0.44217]
[1725688619124,3.95282561,2262.7,2262.3,0.44213]
[1725688619125,0.44208,2262.6,2262.3,0.44213]
[1725688619325,0.44208,2262.6,2262.4,0.3807]
[1725688619524,0.44208,2262.6,2262.4,0.7701]
[1725688620421,0.44207,2262.7,2262.4,1.21221]
[1725688620730,0.44208,2262.6,2262.4,0.7701]
[1725688621827,3.4302,2262.9,2262.4,0.7701]
[1725688622122,0.44206,2262.7,2262.5,0.3924]
[1725688622426,0.44207,2262.7,2262.5,0.3924]
[1725688623425,0.44204,2262.8,2262.5,0.83449]
[1725688624032,0.44204,2262.8,2262.5,0.3924]
[1725688624330,0.3702,2262.9,2262.6,0.44207]
[1725688624331,0.81223,2262.9,2262.6,0.44207]
[1725688625725,0.44204,2262.8,2262.6,0.44207]
[1725688626831,0.44204,2262.8,2262.5,0.83448]
[1725688628347,0.44204,2262.8,2262.6,0.44207]
[1725688630225,4.02003,2262.9,2262.6,0.44207]
[1725688630527,4.02003,2262.9,2262.5,0.3924]
[1725688630528,3.578,2262.9,2262.7,0.44204]
[1725688630728,3.578,2262.9,2262.5,0.3924]
[1725688630928,3.578,2262.9,2262.4,0.7701]
[1725688630929,7.74309,2262.9,2262.4,0.7701]
[1725688631237,3.578,2262.9,2262.4,0.7701]
[1725688631432,3.578,2262.9,2262.6,0.44206]
[1725688631731,3.578,2262.9,2262.7,0.3671]
[1725688632236,0.3739,2263.3,2262.9,0.44201]
[1725688632437,4.04384,2263.4,2263.0,0.3943]
[1725688632731,2.84767561,2263.7,2263.2,3.2078]
[1725688632932,0.44181,2264.0,2263.6,0.44187]
[1725688633131,4.01639,2264.1,2263.7,0.3656]
[1725688633437,3.5746,2264.1,2263.7,0.3656]
[1725688633637,3.5746,2264.1,2263.8,0.44184]
[1725688633832,3.5746,2264.1,2263.7,0.80745]
[1725688634033,3.5746,2264.1,2263.7,0.3656]
[1725688634232,4.01639,2264.1,2263.7,0.3656]
[1725688634935,0.44182,2263.9,2263.7,0.3656]
[1725688635323,0.44182,2263.9,2263.3,3.449]
[1725688635324,10.6854,2263.8,2263.3,0.389]
[1725688635528,3.64965,2263.8,2263.3,0.389]
[1725688635724,3.64964,2263.8,2263.4,0.44191]
[1725688636533,3.64964,2263.8,2263.3,0.83093]
[1725688636734,0.44186,2263.7,2263.3,0.83093]
[1725688637233,0.3693,2263.6,2263.3,0.83093]
[1725688637939,0.3693,2263.6,2263.2,0.3749]
[1725688638244,0.8112,2263.6,2263.2,0.3749]
[1725688638442,0.44191,2263.5,2263.2,0.3749]
[1725688638939,0.3693,2263.6,2263.2,0.3749]
[1725688639143,0.3693,2263.6,2261.9,4.64888295]
[1725688639144,1.10485,2263.3,2262.5,4.36502383]
[1725688639441,1.10485,2263.3,2262.6,0.3839]
[1725688639442,0.44201,2263.0,2262.6,0.3839]
[1725688639744,0.44199,2263.1,2262.6,0.82597]
[1725688640136,0.442,2263.0,2262.6,0.82597]
[1725688640336,0.8218,2263.0,2262.6,0.82597]
[1725688640737,0.8218,2263.0,2262.6,0.3839]
[1725688641641,0.44202,2262.9,2262.6,0.3839]
[1725688641840,0.82181,2263.0,2262.6,0.82597]
[1725688644445,0.44204,2262.8,2262.6,0.3839]
[1725688644840,0.44204,2262.8,2262.5,0.7302]
[1725688645039,0.44204,2262.8,2262.5,0.3694]
[1725688645652,0.44204,2262.8,2262.5,0.81149]
[1725688645943,0.44203,2262.9,2262.5,0.81149]
[1725688646844,0.44205,2262.8,2262.5,0.3694]
[1725688647349,0.44206,2262.7,2262.5,0.3694]
[1725688647753,0.44207,2262.6,2262.4,1.15722383]
[1725688648049,0.3986,2262.5,2262.4,1.15722383]
[1725688648239,0.44207,2262.6,2262.4,1.15722383]
[1725688648443,0.44209,2262.6,2262.4,1.15722383]
[1725688648948,0.44209,2262.6,2262.3,2.32795383]
[1725688649444,0.44209,2262.6,2262.4,0.44211]
[1725688650139,0.44209,2262.6,2262.4,1.15722383]
[1725688656567,0.44209,2262.5,2262.4,1.15722383]
[1725688656759,0.44209,2262.5,2262.4,3.36889124]
[1725688659864,0.44209,2262.5,2262.4,1.15722383]
[1725688661663,0.44208,2262.6,2262.4,1.59933383]
[1725688661961,0.44209,2262.5,2262.4,1.15722383]
[1725688662468,0.44209,2262.5,2262.4,3.36885254]
[1725688665666,0.44209,2262.5,2262.4,1.15722383]
[1725688666169,1.54733,2262.5,2262.4,1.15722383]
[1725688666371,1.54733,2262.5,2262.2,1.54152383]
[1725688666372,0.44213,2262.3,2262.2,1.54152383]
[1725688667269,0.44213,2262.3,2262.2,0.3843]
[1725688667861,0.44213,2262.3,2262.2,1.54152383]
[1725688671661,0.44213,2262.4,2262.2,1.54152383]
[1725688672376,3.50211,2262.5,2262.2,1.98366383]
[1725688672573,0.44211,2262.4,2262.2,1.98366383]
[1725688673273,0.44211,2262.4,2262.2,1.54152383]
[1725688673471,0.44211,2262.4,2262.2,0.3843]
[1725688673670,0.44211,2262.4,2262.2,1.54152383]
[1725688674671,0.44211,2262.4,2262.2,0.3843]
[1725688675973,0.44211,2262.4,2262.2,0.82645]
[1725688676363,0.44211,2262.4,2262.2,1.98367383]
[1725688676567,0.44211,2262.4,2262.2,0.82645]
[1725688678674,3.50211,2262.5,2262.2,0.82645]
[1725688679273,0.44212,2262.4,2262.2,0.82645]
[1725688679485,3.50211,2262.5,2262.2,1.98367383]
[1725688679967,0.44212,2262.4,2262.2,1.98367383]
[1725688682380,3.06,2262.5,2262.2,1.98367383]
[1725688682676,3.50211,2262.5,2262.3,1.15722383]
[1725688683079,3.50211,2262.5,2262.3,1.59935383]
[1725688683278,3.06,2262.5,2262.3,1.59935383]
[1725688683477,3.06,2262.5,2262.4,1.15722383]
[1725688683669,3.50209,2262.5,2262.4,1.15722383]
[1725688683874,7.92209,2262.5,2262.4,1.15722383]
[1725688684480,7.92209,2262.5,2262.4,3.94764818]
[1725688684676,2.84767561,2262.9,2262.8,0.44204]
[1725688684879,3.06,2263.0,2262.8,4.39036417]
[1725688685071,3.502,2263.0,2262.9,2.21181244]
[1725688685277,3.06,2263.0,2262.9,3.36940233]
[1725688685476,3.06,2263.0,2262.9,5.10591406]
[1725688685679,3.502,2263.0,2262.9,3.36940233]
[1725688685872,3.502,2263.0,2262.9,3.94832417]
[1725688686178,1.712,2263.0,2262.9,3.94832417]
[1725688686478,1.712,2263.0,2262.9,3.369499]
[1725688686680,6.1312,2263.0,2262.9,1.15768656]
[1725688686877,0.44202,2262.9,2262.8,1.15768656]
[1725688687084,0.44202,2262.9,2262.8,3.36919463]
[1725688688076,3.50202,2262.9,2262.8,3.36919463]
[1725688688290,3.50202,2262.9,2262.8,1.15768656]
[1725688688487,3.50202,2262.9,2262.8,3.36915635]
[1725688688676,3.50202,2262.9,2262.8,1.15768656]
[1725688689182,0.44204,2262.8,2262.7,1.15768656]
[1725688689376,0.44206,2262.7,2262.6,1.15768656]
[1725688689582,9.39501,2262.7,2262.6,1.15768656]
[1725688689778,0.44207,2262.6,2262.5,1.15768656]
[1725688689979,0.44209,2262.5,2262.4,1.15768656]
[1725688691384,4.86209,2262.5,2262.4,1.15768656]
[1725688692387,3.4286,2262.7,2262.4,3.3694888]
[1725688692686,0.3686,2262.7,2262.5,1.15768656]
[1725688692885,0.3686,2262.7,2262.6,1.15768656]
[1725688693387,4.7878,2262.7,2262.6,1.15768656]
[1725688694587,4.4192,2262.7,2262.6,1.15768656]
[1725688694788,3.06,2262.9,2262.6,1.15768656]
[1725688694789,3.5836,2263.2,2262.6,1.15768656]
[1725688695085,0.83321,2263.0,2262.7,4.20699898]
[1725688695289,0.83321,2263.0,2262.7,1.99553656]
[1725688695490,0.83321,2263.0,2262.8,1.15768656]
[1725688697589,0.83321,2263.0,2262.7,3.28999829]
[1725688697787,0.44202,2262.9,2262.7,1.55348656]
[1725688697987,0.44202,2262.9,2262.8,3.36911575]
[1725688698479,0.44201,2263.0,2262.8,3.36911575]
[1725688698685,0.44198,2263.1,2262.9,3.75009933]
[1725688698887,6.70977,2263.2,2263.0,5.4688639]
[1725688699092,6.70977,2263.2,2263.1,1.1581252]
[1725688699093,3.06,2263.2,2263.1,1.1581252]
[1725688699598,3.50196,2263.2,2263.1,3.36926243]
[1725688699788,7.92036,2263.2,2263.1,1.1581252]
[1725688699987,3.50196,2263.2,2263.1,3.36925852]
[1725688700187,3.50196,2263.2,2263.1,1.1581252]
[1725688700493,6.70976,2263.2,2263.1,1.1581252]
[1725688701185,6.2678,2263.2,2263.1,1.1581252]
[1725688701790,3.2078,2263.2,2263.1,1.1581252]
[1725688701985,8.06816,2263.2,2263.1,1.1581252]
[1725688702493,3.2078,2263.2,2263.1,1.1581252]
[1725688703194,3.2078,2263.2,2263.0,1.9629252]
[1725688703487,0.44195,2263.3,2263.0,1.5209252]
[1725688703697,3.64976,2263.2,2263.0,1.5209252]
[1725688703897,3.2078,2263.2,2263.0,1.5209252]
[1725688704381,3.64976,2263.2,2263.0,1.5209252]
[1725688704583,0.44196,2263.2,2263.0,1.5209252]
[1725688704996,0.44196,2263.2,2263.0,0.3628]
[1725688705192,3.64976,2263.2,2263.0,0.3628]
[1725688705397,0.44196,2263.2,2263.0,0.3628]
[1725688705585,0.44195,2263.3,2263.0,0.3628]
[1725688705790,8.975,2263.6,2263.2,3.06]
[1725688706084,2.84767561,2263.8,2263.4,1.5983603]
[1725688706294,3.2078,2263.8,2263.5,0.7605]
[1725688706882,3.64964,2263.8,2263.5,0.7605]
[1725688708189,3.2078,2263.8,2263.5,0.7605]
[1725688709097,3.06,2264.0,2263.6,3.2078]
[1725688709300,3.50181,2264.0,2263.7,0.3784]
[1725688709801,0.44181,2264.0,2263.7,0.3784]
[1725688713395,0.44182,2263.9,2263.7,0.3784]
[1725688714799,3.2078,2264.3,2263.8,7.6254]
[1725688714990,0.3659,2264.5,2264.1,3.64958]
[1725688715488,0.3659,2264.5,2264.2,0.7518]
[1725688716497,0.8076,2264.5,2264.2,0.7518]
[1725688716799,0.3659,2264.5,2264.2,0.7518]
[1725688716993,0.80761,2264.5,2264.2,0.7518]
[1725688717196,0.80761,2264.5,2264.1,3.64957]
[1725688717501,0.44185,2263.8,2263.4,3.64972]
[1725688717701,0.4419,2263.5,2263.3,0.3974]
[1725688718097,1.17057,2263.7,2263.3,0.83933]
[1725688718807,1.17057,2263.7,2263.3,4.04713]
[1725688719194,0.7287,2263.7,2263.4,0.44191]
[1725688719590,3.46692239,2264.3,2263.6,3.2078]
[1725688719794,0.44175,2264.3,2263.9,0.44181]
[1725688720203,3.8162,2264.5,2264.0,0.4418]
[1725688720404,0.44173,2264.4,2264.1,1.1462]
[1725688721499,4.25792,2264.5,2264.1,1.58798]
[1725688721699,0.3934,2264.5,2264.2,0.44176]
[1725688722289,0.8351,2264.5,2264.1,1.58797]
[1725688723193,0.8351,2264.5,2264.2,0.44176]
[1725688723398,3.2078,2264.6,2264.1,1.1462]
[1725688723600,3.2078,2264.6,2264.3,0.44173]
[1725688724004,0.66808576,2264.7,2264.3,0.44173]
[1725688724606,0.3589,2264.8,2264.5,0.4417]
[1725688724799,0.3589,2264.8,2264.6,1.1604]
[1725688725104,3.2078,2264.9,2264.6,1.60208]
[1725688725305,3.4228,2265.1,2264.6,1.1604]
[1725688725501,0.3628,2265.1,2264.8,0.44163]
[1725688725806,4.16385,2265.4,2265.0,0.4416]
[1725688725807,3.50154,2265.4,2265.0,0.4416]
[1725688726002,0.3628,2265.3,2264.8,3.2078]
[1725688726210,3.4201,2265.5,2264.8,3.2078]
[1725688726408,3.4228,2265.5,2265.1,0.44157]
[1725688726702,3.4228,2265.5,2265.2,1.1425]
[1725688726898,3.86431,2265.5,2265.2,1.1425]
[1725688727908,3.60097561,2265.8,2265.2,1.1425]
[1725688727909,2.84767561,2265.8,2265.2,1.1425]
[1725688728208,0.44147,2265.7,2265.3,0.44153]
[1725688728600,0.44147,2265.7,2265.4,0.44153]
[1725688729005,3.28913561,2265.8,2265.4,0.44153]
[1725688729310,0.44148,2265.7,2265.3,0.44154]
[1725688729610,3.28913561,2265.8,2265.4,0.44152]
[1725688729915,3.28913561,2265.8,2265.5,0.44151]
[1725688730102,0.44146,2265.8,2265.5,0.44151]
[1725688730308,3.50144,2265.9,2265.5,0.44151]
[1725688731309,0.44145,2265.8,2265.5,0.44151]
[1725688731509,0.44145,2265.8,2265.4,0.44152]
[1725688731913,6.2678,2265.9,2265.3,0.44154]
[1725688732113,0.44148,2265.7,2265.4,0.44153]
[1725688732913,0.44148,2265.7,2265.2,1.1425]
[1725688733214,0.44148,2265.7,2265.3,0.44155]
[1725688733812,0.44148,2265.7,2265.4,0.44152]
[1725688735418,3.2078,2265.9,2265.5,0.4415]
[1725688735619,3.5715,2265.9,2265.5,0.4415]
[1725688735919,0.44146,2265.8,2265.5,0.4415]
[1725688736712,0.44144,2265.9,2265.6,0.3861]
[1725688737016,0.44144,2265.9,2265.7,0.3739]
[1725688737211,0.44145,2265.8,2265.7,0.747]
[1725688740112,0.3642,2266.1,2265.7,0.747]
[1725688740417,0.3642,2266.1,2265.7,1.18846]
[1725688740418,0.44143,2266.0,2265.7,1.18846]
[1725688740917,2.84767561,2266.3,2265.8,0.44144]
[1725688741115,0.44142,2266.0,2265.7,1.18846]
[1725688741421,0.44143,2265.9,2265.7,0.747]
[1725688742024,0.44143,2265.9,2265.7,1.18847]
[1725688742207,0.44142,2266.0,2265.7,1.18847]
[1725688742514,0.44144,2265.9,2265.7,0.747]
[1725688742912,1.10339,2266.3,2265.7,0.747]
[1725688743217,0.44141,2266.1,2265.8,0.44144]
[1725688743614,0.44141,2266.1,2265.8,0.44145]
[1725688744015,0.44141,2266.1,2265.9,0.44143]
[1725688744414,0.44141,2266.1,2266.0,0.3754]
[1725688746113,4.4128,2266.1,2265.7,3.2078]
[1725688746317,0.44153,2265.4,2265.0,3.2078]
[1725688746621,0.44152,2265.5,2265.1,0.44159]
[1725688747121,0.44155,2265.3,2265.0,3.2078]
[1725688747320,0.44156,2265.3,2265.0,3.2078]
[1725688750412,0.44157,2265.2,2265.0,3.2078]
[1725688750616,0.44159,2265.1,2264.9,1.1526]
[1725688750814,0.44158,2265.2,2264.9,1.1526]
[1725688751115,0.44159,2265.1,2264.9,1.1526]
[1725688751314,0.3981,2265.4,2264.9,1.1526]
[1725688751516,0.44161,2265.0,2264.9,1.1526]
[1725688751825,0.44159,2265.1,2264.9,1.1526]
[1725688753320,0.44148,2265.7,2265.0,10.683]
[1725688753518,0.3777,2266.0,2265.5,0.4415]
[1725688753717,0.44146,2265.8,2265.6,1.1114]
[1725688753923,0.44147,2265.7,2265.6,1.1114]
[1725688754119,0.44147,2265.7,2265.6,5.525]
[1725688754318,0.44146,2265.8,2265.6,5.525]
[1725688754515,0.44144,2265.9,2265.6,1.55288]
[1725688755221,0.44148,2265.7,2265.4,0.44152]
[1725688755425,0.44148,2265.7,2265.4,1.19812]
[1725688755635,0.44146,2265.8,2265.5,0.44151]
[1725688756727,0.44145,2265.8,2265.5,0.44151]
[1725688757318,0.44144,2265.9,2265.6,0.44149]
[1725688757623,3.64919,2266.2,2265.9,0.44143]
[1725688757825,3.64919,2266.2,2266.0,1.1522]
[1725688758331,0.44139,2266.1,2266.0,1.1522]
[1725688758514,0.44138,2266.2,2266.0,1.1522]
[1725688759123,0.44139,2266.1,2266.0,1.1522]
[1725688759535,4.4128,2266.1,2265.6,3.2078]
[1725688759732,0.44148,2265.7,2265.5,0.77]
[1725688759923,0.44146,2265.8,2265.5,1.2115]
[1725688760121,0.44146,2265.8,2265.5,0.77]
[1725688760519,0.44144,2265.9,2265.5,0.77]
[1725688760720,0.44145,2265.8,2265.5,4.4193]
[1725688761033,0.3728,2266.0,2265.5,4.4193]
[1725688761034,0.3728,2266.0,2265.5,3.9778]
[1725688761227,0.44147,2265.7,2265.5,3.9778]
[1725688763030,0.44146,2265.8,2265.5,4.41931]
[1725688765031,0.44146,2265.8,2265.5,1.21151]
[1725688765232,0.44149,2265.6,2265.5,0.77]
[1725688765433,0.44149,2265.6,2265.5,0.3754]
[1725688765632,1.46532,2265.9,2265.5,0.3754]
[1725688765633,0.44148,2265.7,2265.5,0.3754]
[1725688766134,0.44149,2265.6,2265.5,0.3754]
[1725688766535,0.44148,2265.7,2265.5,0.3754]
[1725688766833,0.44149,2265.6,2265.5,0.3754]
[1725688770531,0.4414,2266.1,2265.5,22.66510134]
[1725688770732,2.84767561,2266.2,2265.9,0.44142]
[1725688770733,3.28905561,2266.2,2265.9,0.44142]
[1725688770931,0.44137,2266.3,2266.0,1.5818]
[1725688771637,1.32862988,2266.8,2266.2,0.44136]
[1725688771843,1.70482988,2266.8,2266.2,1.15534497]
[1725688772140,1.70482988,2266.8,2266.1,7.42314497]
[1725688772141,0.44134,2266.4,2266.1,7.42314497]
[1725688772334,0.44134,2266.4,2266.1,7.86453497]
[1725688772537,0.44134,2266.4,2266.2,3.3632738]
[1725688772740,0.44134,2266.4,2266.2,1.15534497]
[1725688772933,0.44135,2266.3,2266.2,1.15534497]
[1725688773137,0.3656,2266.5,2266.0,2.29574497]
[1725688773331,0.44136,2266.3,2266.1,1.15534497]
[1725688773538,0.3656,2266.5,2266.0,2.87341746]
[1725688773539,0.44138,2266.2,2266.0,2.29574497]
[1725688773738,0.44137,2266.3,2266.0,2.29574497]
[1725688773937,0.81788,2266.2,2266.0,0.7723]
[1725688774137,0.81788,2266.2,2266.0,1.92764497]
[1725688774340,0.81788,2266.2,2266.0,0.7723]
[1725688774543,0.81788,2266.2,2266.0,1.92764497]
[1725688774743,0.81788,2266.2,2266.0,0.7723]
[1725688774932,0.3765,2266.2,2266.0,0.3745]
[1725688776035,3.2078,2266.6,2266.0,4.58984497]
[1725688776240,3.95075561,2267.0,2266.0,4.58984497]
[1725688776241,0.44124,2266.9,2266.5,0.4413]
[1725688776546,3.2078,2267.0,2266.6,1.1287]
[1725688776843,0.44126,2266.8,2266.6,1.1287]
[1725688777150,0.44125,2266.9,2266.6,1.1287]
[1725688778038,0.44126,2266.8,2266.6,1.1287]
[1725688778740,0.44125,2266.9,2266.6,1.1287]
[1725688779039,0.44126,2266.8,2266.6,1.1287]
[1725688779542,0.44131,2266.5,2266.4,1.15534497]
[1725688779744,1.10324,2266.6,2266.1,2.26314497]
[1725688780042,0.3786,2266.4,2266.1,2.70453497]
[1725688780242,0.3616,2266.6,2266.2,0.44137]
[1725688780549,0.44132,2266.5,2266.2,0.44137]
[1725688780939,0.44132,2266.5,2266.1,1.54918]
[1725688781235,0.44132,2266.5,2266.2,0.44137]
[1725688784345,0.3786,2266.7,2266.2,0.44137]
[1725688784652,3.2078,2266.7,2266.5,0.44131]
[1725688784851,3.2078,2266.7,2266.6,0.7471]
[1725688785357,3.64908,2266.7,2266.6,0.7471]
[1725688785863,0.44128,2266.7,2266.6,0.7471]
[1725688786251,0.44127,2266.8,2266.6,0.7471]
[1725688786955,0.44128,2266.7,2266.6,1.125]
[1725688787148,0.44128,2266.7,2266.6,0.3658]
[1725688792448,1.10333,2266.5,2266.0,1.15534497]
[1725688792652,0.44141,2266.0,2265.9,3.9839]
[1725688792850,1.10368,2265.8,2265.3,1.15534497]
[1725688793054,0.44152,2265.5,2265.3,0.3965]
[1725688793750,0.44151,2265.6,2265.3,0.83805]
[1725688794060,0.44151,2265.6,2265.3,0.83804]
[1725688796360,0.44148,2265.7,2265.3,0.83804]
[1725688796560,0.44149,2265.6,2265.3,0.83804]
[1725688797260,0.44142,2266.0,2265.7,0.44146]
[1725688797665,0.4414,2266.1,2265.8,0.80665]
[1725688797961,0.4414,2266.1,2265.8,0.80663]
[1725688798151,0.4414,2266.1,2265.9,0.3619]
[1725688798348,0.44138,2266.2,2265.9,0.80332]
[1725688798553,0.44138,2266.2,2265.9,0.3619]
[1725688798767,0.44138,2266.2,2265.9,0.80333]
[1725688800548,1.21276,2266.3,2265.9,0.80333]
[1725688800756,0.82546,2266.3,2266.0,0.44141]
[1725688801152,3.2078,2266.4,2266.1,0.44138]
[1725688801555,3.24377561,2266.7,2265.9,3.4219]
[1725688801759,0.44131,2266.6,2266.3,0.44135]
[1725688802057,0.44131,2266.6,2266.1,6.2678]
[1725688802362,3.22077561,2266.7,2266.2,0.378]
[1725688802363,3.66205561,2266.7,2266.2,0.378]
[1725688802561,3.66205561,2266.7,2266.3,0.3957]
[1725688802756,3.66205561,2266.7,2266.4,0.44133]
[1725688802951,0.81438,2266.7,2266.4,0.80483]
[1725688803767,7.76132,2267.1,2266.4,0.80483]
[1725688803961,0.44128,2266.7,2266.4,0.80483]
[1725688804156,0.4413,2266.6,2266.4,0.3635]
[1725688804357,0.44129,2266.7,2266.4,0.80483]
[1725688804554,0.4413,2266.6,2266.4,0.3635]
[1725688805057,3.2078,2266.8,2266.4,0.3635]
[1725688805458,1.48312,2266.9,2266.4,0.3635]
[1725688805659,0.4413,2266.6,2266.4,0.3635]
[1725688806459,0.44129,2266.7,2266.4,0.3635]
[1725688807256,0.4413,2266.6,2266.4,0.3635]
[1725688807663,5.90767561,2267.2,2266.5,7.6198]
[1725688807664,2.84767561,2267.2,2266.5,7.6198]
[1725688807865,4.23082575,2267.4,2266.5,7.6198]
[1725688807866,0.44118,2267.3,2266.8,6.2678]
[1725688808067,0.44118,2267.3,2267.0,0.44121]
[1725688808380,0.44118,2267.3,2266.9,1.56783]
[1725688808565,3.2078,2267.4,2267.0,0.44122]
[1725688808869,0.44117,2267.3,2267.0,0.44122]
[1725688809068,0.44117,2267.3,2266.9,1.56782]
[1725688810461,0.44117,2267.3,2267.0,0.44121]
[1725688810661,3.2078,2267.4,2266.9,1.1266]
[1725688810861,3.2078,2267.4,2266.9,2.28194497]
[1725688811062,3.2078,2267.4,2266.9,1.1266]
[1725688811261,0.44117,2267.3,2266.9,1.56783]
[1725688812166,0.44118,2267.2,2266.9,1.1266]
[1725688812469,0.44119,2267.2,2266.9,0.7373]
[1725688812765,0.44119,2267.2,2266.9,1.1085]
[1725688812970,6.2678,2267.4,2266.9,1.1085]
[1725688812971,0.4412,2267.1,2266.9,1.1085]
[1725688813266,0.4413,2266.6,2266.1,0.44138]
[1725688813469,6.2678,2267.0,2266.2,0.82387]
[1725688813470,0.44128,2266.7,2266.2,0.82387]
[1725688813666,0.44127,2266.8,2266.3,0.44135]
[1725688814160,0.44127,2266.8,2266.4,0.44133]
[1725688814365,0.44127,2266.8,2266.3,0.44134]
[1725688816271,0.44126,2266.8,2266.4,3.06]
[1725688816771,0.44128,2266.7,2266.4,3.06]
[1725688816974,0.44128,2266.7,2266.2,1.97920497]
[1725688816975,0.44129,2266.7,2266.2,1.97920497]
[1725688817164,0.44129,2266.7,2266.2,3.88386]
[1725688817363,6.83477561,2267.0,2266.2,6.6503]
[1725688817569,6.83477561,2267.0,2266.2,7.80564497]
[1725688817776,0.44126,2266.8,2266.3,0.44135]
[1725688818578,5.39368923,2266.9,2266.4,0.44133]
[1725688819076,0.44124,2266.9,2266.2,6.6503]
[1725688819377,0.44126,2266.8,2266.2,6.6503]
[1725688819673,0.44125,2266.9,2266.4,0.44132]
[1725688819869,0.44124,2266.9,2266.5,0.4413]
[1725688820077,0.44124,2266.9,2266.6,0.3655]
[1725688820275,0.44124,2266.9,2266.6,0.7311]
[1725688820477,0.44124,2266.9,2266.7,0.3638]
[1725688822977,0.82763,2267.0,2266.7,0.80507]
[1725688823270,0.44119,2267.2,2266.7,0.3638]
[1725688823477,0.44119,2267.2,2266.8,0.44124]
[1725688823776,0.4412,2267.1,2266.8,0.44125]
[1725688824574,0.44122,2267.0,2266.8,0.44125]
[1725688824876,0.44122,2267.0,2266.7,0.3638]
[1725688825073,0.44126,2266.8,2266.7,0.3638]
[1725688825477,0.44125,2266.9,2266.7,0.3638]
[1725688825775,0.3818,2267.2,2266.7,0.80507]
[1725688825982,0.44124,2266.9,2266.7,0.80507]
[1725688827776,1.48478,2267.2,2266.6,3.9389]
[1725688827777,0.3818,2267.2,2266.6,3.9389]
[1725688827975,0.3818,2267.2,2266.5,1.15534497]
[1725688827976,0.44131,2266.5,2266.4,0.3872]
[1725688828977,0.44133,2266.4,2266.3,3.2078]
[1725688829481,0.44133,2266.5,2266.3,3.2078]
[1725688829682,0.44133,2266.5,2266.3,3.64915]
[1725688830283,0.44133,2266.5,2266.3,3.2078]
[1725688831388,0.44133,2266.4,2266.3,3.2078]
[1725688833788,1.54481,2266.2,2266.1,1.15534497]
[1725688833982,0.44143,2265.9,2265.8,0.7572]
[1725688834179,1.10368,2265.7,2265.6,1.15534497]
[1725688834383,1.10363,2265.9,2265.5,0.7572]
[1725688834684,0.44146,2265.8,2265.6,0.44149]
[1725688834879,0.44145,2265.9,2265.5,0.7572]
[1725688835084,0.7595,2266.3,2265.7,0.44146]
[1725688835389,0.44142,2266.0,2265.8,0.44145]
[1725688835582,0.44142,2266.0,2265.9,0.3688]
[1725688835990,0.44141,2266.0,2265.9,0.3688]
[1725688836179,0.44136,2266.3,2266.1,0.44139]
[1725688836384,0.44136,2266.3,2266.2,0.3884]
[1725688836584,0.44135,2266.4,2266.2,0.82977]